[Event "EYTCC Open U12 2018"]
[Site "Bad Blankeburg"]
[Date "2018.07.12"]
[Round "1"]
[White "Mekhane, Adam"]
[Black "Caliskan, Seha"]
[Result "*"]
[ECO "B18"]
[WhiteElo "1999"]
[BlackElo "1874"]
[Annotator "NA"]
[PlyCount "80"]
[EventDate "2018.07.12"]
[EventType "swiss"]
[EventCountry "GER"]
[SourceTitle "playchess.com"]
[Source "ChessBase"]
[SourceQuality "1"]
[TimeControl "40/5400+30:1800+30"]

1. e4 {[%emt 0:00:00]} c6 {[%emt 0:00:00]} 2. d4 {[%emt 0:00:00]} d5 {[%emt 0:00:03]} 3. Nc3 {[%emt 0:00:24]} dxe4 {[%emt 0:00:43]} 4. Nxe4 {[%emt 0:00:16]} Bf5 {[%emt 0:00:26]} 5. Ng3 {[%emt 0:00:10]} Bg6 {[%emt 0:00:25]} 6. h4 {[%emt 0:00:13]} h6 {[%emt 0:00:05]} 7. h5 {[%emt 0:00:04]} Bh7 {[%emt 0:00:06]} 8. Nf3 {[%emt 0:00:25]} Nf6 {[%emt 0:00:15]} 9. Bd3 {[%emt 0:00:50]} Bxd3 {[%emt 0:00:45]} 10. Qxd3 {[%emt 0:00:04]} e6 {[%emt 0:00:21]} 11. Bd2 {[%emt 0:01:06]} Nbd7 {[%emt 0:00:52]} 12. O-O-O {[%emt 0:01:37]} Bd6 {[%emt 0:01:09]} 13. Ne4 {[%emt 0:02:44]} Nxe4 {[%emt 0:00:12]} 14. Qxe4 {[%emt 0:00:01]} Nf6 {[%emt 0:00:15]} 15. Qe2 {[%emt 0:00:44]} Qc7 {[%emt 0:00:32]} 16. Kb1 {[%emt 0:03:11]} O-O-O {[%emt 0:00:21]} 17. c4 {[%emt 0:02:13]} Bf4 {[%emt 0:06:01]} 18. Bc3 {[%emt 0:04:16]} Rhe8 {[%emt 0:03:36]} 19. Ne5 {[%emt 0:10:37]} Ng8 {[%emt 0:05:26]} 20. Qg4 {[%emt 0:15:15]} Bg5 {[%emt 0:02:41]} 21. f4 {[%emt 0:04:30]} Bf6 {[%emt 0:00:23]} 22. Bb4 {[%emt 0:19:31]} Kb8 {[%emt 0:00:34]} 23. Rh3 {[%emt 0:07:22]} a5 {[%emt 0:07:25]} 24. Bc5 {[%emt 0:06:18]} a4 {[%emt 0:01:26]} 25. Ra3 {[%emt 0:08:40]} b6 {[%emt 0:04:50]} 26. Bb4 {[%emt 0:00:48]} Kb7 {[%emt 0:08:29]} 27. Rxa4 {[%emt 0:02:03]} Ra8 {[%emt 0:01:47]} 28. Rxa8 {[%emt 0:01:04]} Rxa8 {[%emt 0:00:15]} 29. d5 {[%emt 0:03:31]} cxd5 {[%emt 0:06:03]} 30. cxd5 {[%emt 0:00:37]} Rc8 {[%emt 0:00:30]} 31. Bc3 {[%emt 0:03:39]} Bxe5 {[%emt 0:04:08]} 32. fxe5 {[%emt 0:00:21]} exd5 {[%emt 0:02:18]} 33. Rxd5 {[%emt 0:01:13]} Rd8 {[%emt 0:00:35]} 34. Qd4 {[%emt 0:01:08]} Rxd5 {[%emt 0:01:34]} 35. Qxd5+ {[%emt 0:00:01]} Ka7 {[%emt 0:00:06]} 36. Bb4 {[%emt 0:01:44]} Qb7 {[%emt 0:01:43]} 37. Qc4 {[%emt 0:01:11]} Ne7 {[%emt 0:01:15]} 38. a3 {[%emt 0:00:36]} Nc6 {[%emt 0:00:46]} 39. Bc3 {[%emt 0:00:30]} Qd7 {[%emt 0:00:36]} 40. Qe4 {[%emt 0:00:31]} Qe6 {[%emt 0:01:07]} *

[Event "EYTCC Open U12 2018"]
[Site "Bad Blankeburg"]
[Date "2018.07.12"]
[Round "1"]
[White "Kures, Michael"]
[Black "Fule, Simon"]
[Result "*"]
[ECO "B47"]
[WhiteElo "1982"]
[BlackElo "2061"]
[Annotator "NA"]
[PlyCount "44"]
[EventDate "2018.07.12"]
[EventType "swiss"]
[EventCountry "GER"]
[SourceTitle "playchess.com"]
[Source "ChessBase"]
[SourceQuality "1"]
[TimeControl "40/5400+30:1800+30"]

1. e4 {[%emt 0:00:00]} c5 {[%emt 0:00:15]} 2. Nf3 {[%emt 0:00:00]} e6 {[%emt 0:00:16]} 3. d4 {[%emt 0:00:21]} cxd4 {[%emt 0:00:07]} 4. Nxd4 {[%emt 0:00:25]} Nc6 {[%emt 0:00:11]} 5. Nc3 {[%emt 0:00:21]} Qc7 {[%emt 0:00:06]} 6. Be2 {[%emt 0:00:16]} Nf6 {[%emt 0:00:46]} 7. O-O {[%emt 0:00:35]} a6 {[%emt 0:00:01]} 8. Be3 {[%emt 0:00:44]} b5 {[%emt 0:00:12]} 9. Nxc6 {[%emt 0:00:57]} dxc6 {[%emt 0:00:08]} 10. f4 {[%emt 0:00:12]} Be7 {[%emt 0:03:02]} 11. e5 {[%emt 0:01:22]} Nd5 {[%emt 0:00:05]} 12. Nxd5 {[%emt 0:00:11]} cxd5 {[%emt 0:00:05]} 13. Kh1 {[%emt 0:01:58]} Bd7 {[%emt 0:00:54]} 14. Bd3 {[%emt 0:03:21]} Bc5 {[%emt 0:12:02]} 15. Bxc5 {[%emt 0:10:56]} Qxc5 {[%emt 0:00:04]} 16. c3 {[%emt 0:12:21]} g6 {[%emt 0:16:00]} 17. Qd2 {[%emt 0:24:26]} O-O {[%emt 0:29:22]} 18. Rae1 {[%emt 0:16:16]} Rfb8 {[%emt 0:15:31]} 19. b4 {[%emt 0:05:58]} Qf8 {[%emt 0:10:25]} 20. Rf3 {[%emt 0:00:59]} a5 {[%emt 0:00:34]} 21. bxa5 {[%emt 0:02:23]} Rxa5 {[%emt 0:00:05]} 22. Bb1 {[%emt 0:01:41]} b4 {[%emt 0:03:24]} *

[Event "EYTCC Open U12 2018"]
[Site "Bad Blankeburg"]
[Date "2018.07.12"]
[Round "1"]
[White "Kures, Michael"]
[Black "Fule, Simon"]
[Result "1/2-1/2"]
[ECO "C28"]
[WhiteElo "1982"]
[BlackElo "2061"]
[Annotator "NA"]
[PlyCount "150"]
[EventDate "2018.07.12"]
[EventType "swiss"]
[EventCountry "GER"]
[SourceTitle "playchess.com"]
[Source "ChessBase"]
[SourceQuality "1"]
[TimeControl "40/5400+30:1800+30"]

1. e4 {[%emt 0:00:00]} e5 {[%emt 0:00:00]} 2. Nc3 {[%emt 0:00:00]} Nf6 {[%emt 0:00:21]} 3. Bc4 {[%emt 0:00:41]} Nc6 {[%emt 0:00:36]} 4. d3 {[%emt 0:01:25]} Be7 {[%emt 0:03:06]} 5. Be3 {[%emt 0:01:28]} Na5 {[%emt 0:02:16]} 6. Nf3 {[%emt 0:01:57]} Nxc4 {[%emt 0:01:45]} 7. dxc4 {[%emt 0:00:45]} d6 {[%emt 0:00:10]} 8. h3 {[%emt 0:00:50]} Be6 {[%emt 0:02:40]} 9. Qe2 {[%emt 0:01:20]} c5 {[%emt 0:07:08]} 10. g4 {[%emt 0:03:10]} Qa5 {[%emt 0:04:27]} 11. Nd2 {[%emt 0:01:16]} h6 {[%emt 0:04:24]} 12. f4 {[%emt 0:02:23]} exf4 {[%emt 0:01:31]} 13. Bxf4 {[%emt 0:00:38]} O-O-O {[%emt 0:00:22]} 14. O-O-O {[%emt 0:00:29]} g5 {[%emt 0:05:07]} 15. Bg3 {[%emt 0:02:44]} h5 {[%emt 0:07:34]} 16. Nb3 {[%emt 0:01:34]} Qb4 {[%emt 0:12:10]} 17. Nd5 {[%emt 0:02:38]} Bxd5 {[%emt 0:01:18]} 18. exd5 {[%emt 0:00:14]} Rde8 {[%emt 0:01:48]} 19. a3 {[%emt 0:00:25]} Qa4 {[%emt 0:01:18]} 20. Nd2 {[%emt 0:11:16]} hxg4 21. hxg4 {[%emt 0:00:23]} Rxh1 {[%emt 0:06:49]} 22. Rxh1 {[%emt 0:00:03]} Qd7 {[%emt 0:00:12]} 23. Ne4 {[%emt 0:14:47]} Nxg4 {[%emt 0:15:04]} 24. Bxd6 {[%emt 0:05:37]} f5 {[%emt 0:01:11]} 25. Bxe7 {[%emt 0:01:20]} Rxe7 {[%emt 0:00:28]} 26. Rh8+ {[%emt 0:00:30]} Kc7 {[%emt 0:00:16]} 27. d6+ {[%emt 0:01:09]} Qxd6 {[%emt 0:00:12]} 28. Nxd6 {[%emt 0:02:18]} Rxe2 {[%emt 0:00:11]} 29. Nxf5 {[%emt 0:00:40]} Rf2 {[%emt 0:07:26]} 30. Rh7+ {[%emt 0:01:15]} Kb6 {[%emt 0:01:12]} 31. Nd6 {[%emt 0:04:58]} Ne3 {[%emt 0:04:36]} 32. Nc8+ {[%emt 0:01:54]} Kc6 {[%emt 0:03:22]} 33. Nxa7+ {[%emt 0:03:39]} Kd6 {[%emt 0:00:07]} 34. Rg7 {[%emt 0:00:52]} g4 {[%emt 0:00:17]} 35. Rg5 {[%emt 0:01:38]} Rxc2+ {[%emt 0:01:17]} 36. Kb1 {[%emt 0:00:22]} Rxc4 {[%emt 0:00:51]} 37. b3 {[%emt 0:00:54]} Rf4 {[%emt 0:02:02]} 38. Nb5+ {[%emt 0:01:13]} Ke6 {[%emt 0:01:17]} 39. Kc1 {[%emt 0:00:47]} Kf6 {[%emt 0:01:13]} 40. Rg8 {[%emt 0:00:13]} Nf5 {[%emt 0:03:22]} 41. Nc3 {[%emt 0:32:17]} Rf3 {[%emt 0:01:20]} 42. Kd2 {[%emt 0:00:00]} g3 {[%emt 0:03:08]} 43. b4 {[%emt 0:00:00]} cxb4 {[%emt 0:02:12]} 44. axb4 {[%emt 0:00:00]} Ke5 {[%emt 0:05:56]} 45. Ne2 {[%emt 0:00:00]} Rb3 {[%emt 0:00:37]} 46. Kc2 {[%emt 0:00:00]} Ra3 {[%emt 0:00:31]} 47. Kd2 {[%emt 0:00:00]} Ke4 {[%emt 0:02:16]} 48. Rg4+ {[%emt 0:00:00]} Ke5 {[%emt 0:00:23]} 49. Rg5 {[%emt 0:00:00]} Kf6 {[%emt 0:01:06]} 50. Rg8 {[%emt 0:00:00]} Ra2+ {[%emt 0:01:10]} 51. Ke1 {[%emt 0:00:00]} Rb2 {[%emt 0:01:16]} 52. Nxg3 {[%emt 0:00:00]} Nxg3 {[%emt 0:00:10]} 53. Rxg3 {[%emt 0:00:00]} Rxb4 {[%emt 0:00:06]} 54. Kd2 {[%emt 0:00:00]} Rc4 {[%emt 0:00:31]} 55. Rb3 {[%emt 0:00:00]} Rc7 {[%emt 0:00:11]} 56. Re3 {[%emt 0:00:00]} b6 {[%emt 0:01:22]} 57. Re8 {[%emt 0:00:00]} Rc6 {[%emt 0:00:17]} 58. Kd1 {[%emt 0:00:00]} Kf7 {[%emt 0:00:28]} 59. Re5 {[%emt 0:00:00]} Re6 {[%emt 0:00:18]} 60. Rf5+ {[%emt 0:00:00]} Ke7 {[%emt 0:00:17]} 61. Kc2 {[%emt 0:00:00]} Kd6 {[%emt 0:00:09]} 62. Kb1 {[%emt 0:00:00]} Re5 {[%emt 0:00:26]} 63. Rf3 {[%emt 0:00:00]} b5 {[%emt 0:00:11]} 64. Rh3 {[%emt 0:00:00]} Kc5 {[%emt 0:00:10]} 65. Kb2 {[%emt 0:00:00]} Kb4 {[%emt 0:00:16]} 66. Rh4+ {[%emt 0:00:00]} Ka5 {[%emt 0:00:10]} 67. Rh3 {[%emt 0:00:00]} Re4 {[%emt 0:00:41]} 68. Rg3 {[%emt 0:00:00]} Kb4 {[%emt 0:00:08]} 69. Rh3 {[%emt 0:00:00]} Re2+ {[%emt 0:00:09]} 70. Kb1 {[%emt 0:00:00]} Ka4 {[%emt 0:00:08]} 71. Rh4+ {[%emt 0:00:00]} b4 {[%emt 0:00:10]} 72. Rh3 {[%emt 0:00:00]} Rg2 {[%emt 0:00:34]} 73. Rf3 {[%emt 0:00:00]} b3 {[%emt 0:00:15]} 74. Rf8 {[%emt 0:00:00]} Ka3 {[%emt 0:00:17]} 75. Ra8+ {[%emt 0:00:00]} Kb4 {[%emt 0:00:10]} 1/2-1/2

[Event "EYTCC Open U12 2018"]
[Site "Bad Blankeburg"]
[Date "2018.07.12"]
[Round "1"]
[White "Ozkan, Taha"]
[Black "Droin, Augustin"]
[Result "0-1"]
[ECO "E00"]
[WhiteElo "1891"]
[BlackElo "2095"]
[Annotator "NA"]
[PlyCount "88"]
[EventDate "2018.07.12"]
[EventType "swiss"]
[EventCountry "GER"]
[SourceTitle "playchess.com"]
[Source "ChessBase"]
[SourceQuality "1"]
[TimeControl "40/5400+30:1800+30"]

1. d4 {[%emt 0:00:00]} Nf6 {[%emt 0:00:00]} 2. c4 {[%emt 0:00:00]} e6 {[%emt 0:00:00]} 3. Bg5 {[%emt 0:00:00]} h6 {[%emt 0:00:32]} 4. Bxf6 {[%emt 0:00:02]} Qxf6 {[%emt 0:00:03]} 5. e3 {[%emt 0:00:18]} b6 {[%emt 0:02:40]} 6. Nf3 {[%emt 0:00:19]} Bb7 {[%emt 0:00:37]} 7. Be2 {[%emt 0:00:14]} Be7 {[%emt 0:01:09]} 8. Nc3 {[%emt 0:01:47]} O-O {[%emt 0:02:33]} 9. O-O {[%emt 0:00:52]} d6 {[%emt 0:02:16]} 10. Qc2 {[%emt 0:03:51]} Nd7 {[%emt 0:05:29]} 11. Rfe1 {[%emt 0:04:05]} Rfc8 {[%emt 0:02:25]} 12. Rad1 {[%emt 0:01:14]} g5 {[%emt 0:06:14]} 13. Nd2 {[%emt 0:07:08]} Qg7 {[%emt 0:05:59]} 14. Bd3 {[%emt 0:08:23]} Kh8 {[%emt 0:09:54]} 15. Nf1 {[%emt 0:05:59]} h5 {[%emt 0:10:58]} 16. d5 {[%emt 0:19:59]} Ne5 {[%emt 0:13:48]} 17. Be2 {[%emt 0:03:01]} g4 {[%emt 0:00:24]} 18. Nb5 {[%emt 0:14:56]} c6 {[%emt 0:09:45]} 19. dxc6 {[%emt 0:02:40]} Rxc6 {[%emt 0:00:24]} 20. Nd4 {[%emt 0:01:05]} Rcc8 {[%emt 0:00:16]} 21. e4 {[%emt 0:05:52]} Qh7 {[%emt 0:01:17]} 22. Bd3 {[%emt 0:01:42]} a6 {[%emt 0:09:32]} 23. Qb3 {[%emt 0:03:29]} Nxd3 {[%emt 0:00:46]} 24. Qxd3 {[%emt 0:00:08]} h4 {[%emt 0:02:07]} 25. b3 {[%emt 0:02:03]} Rc5 {[%emt 0:01:15]} 26. b4 {[%emt 0:08:34]} Re5 {[%emt 0:00:42]} 27. Nd2 {[%emt 0:01:06]} d5 {[%emt 0:05:23]} 28. Qc3 {[%emt 0:02:30]} f6 {[%emt 0:03:35]} 29. exd5 {[%emt 0:02:14]} exd5 {[%emt 0:00:30]} 30. c5 {[%emt 0:00:45]} g3 {[%emt 0:02:18]} 31. fxg3 {[%emt 0:00:30]} hxg3 {[%emt 0:00:07]} 32. h3 {[%emt 0:00:31]} Re8 {[%emt 0:01:04]} 33. N2f3 {[%emt 0:00:37]} Re4 {[%emt 0:00:23]} 34. c6 {[%emt 0:00:30]} Bc8 {[%emt 0:00:09]} 35. Qc2 {[%emt 0:00:33]} Bxb4 {[%emt 0:00:17]} 36. Rxe4 {[%emt 0:00:11]} dxe4 {[%emt 0:00:01]} 37. Ne1 {[%emt 0:00:31]} Bc5 {[%emt 0:01:06]} 38. Qe2 {[%emt 0:00:41]} Rd8 {[%emt 0:01:11]} 39. Nec2 {[%emt 0:00:33]} f5 {[%emt 0:00:40]} 40. Qe3 {[%emt 0:00:14]} Qg7 {[%emt 0:00:50]} 41. Qf4 {[%emt 0:30:44]} Bxd4+ {[%emt 0:31:13]} 42. Nxd4 {[%emt 0:00:37]} Rxd4 {[%emt 0:00:10]} 43. Rc1 {[%emt 0:00:28]} Rd3 {[%emt 0:00:38]} 44. c7 {[%emt 0:00:33]} Qd4+ {[%emt 0:00:01]} 0-1

[Event "EYTCC Open U12 2018"]
[Site "Bad Blankeburg"]
[Date "2018.07.12"]
[Round "1"]
[White "Ozkan, Taha"]
[Black "Droin, Augustin"]
[Result "*"]
[ECO "C50"]
[WhiteElo "1891"]
[BlackElo "2095"]
[Annotator "NA"]
[PlyCount "56"]
[EventDate "2018.07.12"]
[EventType "swiss"]
[EventCountry "GER"]
[SourceTitle "playchess.com"]
[Source "ChessBase"]
[SourceQuality "1"]
[TimeControl "40/5400+30:1800+30"]

1. e4 {[%emt 0:00:00]} e5 {[%emt 0:00:00]} 2. Nf3 {[%emt 0:00:00]} Nc6 {[%emt 0:00:00]} 3. Bc4 {[%emt 0:00:00]} Bc5 {[%emt 0:00:00]} 4. d3 {[%emt 0:00:00]} h6 {[%emt 0:00:19]} 5. Bb3 {[%emt 0:00:31]} d6 {[%emt 0:01:01]} 6. c3 {[%emt 0:00:06]} Nf6 {[%emt 0:02:31]} 7. Nbd2 {[%emt 0:00:12]} O-O {[%emt 0:00:52]} 8. O-O {[%emt 0:00:07]} a5 {[%emt 0:00:13]} 9. h3 {[%emt 0:01:31]} Be6 {[%emt 0:01:07]} 10. Re1 {[%emt 0:01:07]} Qb8 {[%emt 0:01:28]} 11. Nf1 {[%emt 0:01:19]} Qa7 {[%emt 0:02:46]} 12. Be3 {[%emt 0:00:09]} a4 {[%emt 0:02:38]} 13. Bc2 {[%emt 0:00:55]} Bxe3 {[%emt 0:02:08]} 14. Nxe3 {[%emt 0:02:43]} Ne7 {[%emt 0:02:37]} 15. d4 {[%emt 0:05:25]} Ng6 {[%emt 0:00:14]} 16. Nf5 {[%emt 0:02:41]} Rfe8 {[%emt 0:01:22]} 17. Qd2 {[%emt 0:10:18]} Rad8 {[%emt 0:07:07]} 18. Rad1 {[%emt 0:01:51]} Bd7 {[%emt 0:09:08]} 19. Kh2 {[%emt 0:15:09]} Qb6 {[%emt 0:10:54]} 20. Bb1 {[%emt 0:05:04]} d5 {[%emt 0:19:11]} 21. Nxe5 {[%emt 0:20:27]} Nxe5 {[%emt 0:22:33]} 22. dxe5 {[%emt 0:00:04]} Rxe5 {[%emt 0:01:36]} 23. f4 {[%emt 0:02:24]} Nxe4 {[%emt 0:05:00]} 24. Rxe4 {[%emt 0:00:04]} Rxe4 {[%emt 0:01:05]} 25. Bxe4 {[%emt 0:03:03]} dxe4 {[%emt 0:01:08]} 26. Ne3 {[%emt 0:00:57]} Rf8 {[%emt 0:10:36]} 27. Qxd7 {[%emt 0:04:27]} Qxe3 {[%emt 0:00:07]} 28. Qxc7 {[%emt 0:00:02]} Qf2 {[%emt 0:05:21]} *

[Event "EYTCC Open U12 2018"]
[Site "Bad Blankeburg"]
[Date "2018.07.12"]
[Round "1"]
[White "Bui, Bao Anh Le"]
[Black "Hagner, Bennet"]
[Result "*"]
[ECO "C72"]
[WhiteElo "1883"]
[BlackElo "1947"]
[Annotator "NA"]
[PlyCount "61"]
[EventDate "2018.07.12"]
[EventType "swiss"]
[EventCountry "GER"]
[SourceTitle "playchess.com"]
[Source "ChessBase"]
[SourceQuality "1"]
[TimeControl "40/5400+30:1800+30"]

1. e4 {[%emt 0:00:00]} e5 {[%emt 0:00:00]} 2. Nf3 {[%emt 0:00:00]} Nc6 {[%emt 0:00:05]} 3. Bb5 {[%emt 0:00:24]} a6 {[%emt 0:00:26]} 4. Ba4 {[%emt 0:00:43]} d6 {[%emt 0:00:19]} 5. O-O {[%emt 0:01:13]} Bg4 {[%emt 0:00:45]} 6. c3 {[%emt 0:01:47]} Qf6 {[%emt 0:00:24]} 7. d3 {[%emt 0:03:53]} Nge7 {[%emt 0:00:21]} 8. Be3 {[%emt 0:07:18]} Ng6 {[%emt 0:06:22]} 9. Nbd2 {[%emt 0:10:34]} Nh4 {[%emt 0:10:28]} 10. Qb3 {[%emt 0:13:24]} b5 {[%emt 0:02:33]} 11. Qd5 {[%emt 0:02:32]} Kd7 {[%emt 0:00:05]} 12. Bxb5 axb5 {[%emt 0:03:35]} 13. Nxh4 {[%emt 0:30:23]} Be6 {[%emt 0:01:59]} 14. Qxb5 {[%emt 0:01:37]} Qxh4 {[%emt 0:05:10]} 15. d4 {[%emt 0:03:41]} exd4 {[%emt 0:03:29]} 16. cxd4 {[%emt 0:00:32]} Ra5 {[%emt 0:02:28]} 17. Qd3 {[%emt 0:01:15]} d5 {[%emt 0:02:32]} 18. f3 {[%emt 0:01:13]} Bd6 {[%emt 0:01:16]} 19. e5 {[%emt 0:00:28]} Be7 {[%emt 0:00:16]} 20. a3 {[%emt 0:01:15]} Rha8 {[%emt 0:01:43]} 21. Rac1 {[%emt 0:01:00]} Nd8 {[%emt 0:16:14]} 22. Rc3 {[%emt 0:04:03]} c6 {[%emt 0:04:10]} 23. Rfc1 {[%emt 0:01:27]} Rb8 {[%emt 0:05:27]} 24. b4 {[%emt 0:01:43]} Rab5 {[%emt 0:00:34]} 25. Nb3 {[%emt 0:00:57]} Qh5 {[%emt 0:01:59]} 26. Na5 {[%emt 0:01:03]} R5b6 {[%emt 0:00:22]} 27. Qe2 {[%emt 0:01:15]} Qg6 {[%emt 0:04:16]} 28. Kh1 {[%emt 0:01:53]} Bf5 {[%emt 0:00:58]} 29. Bf4 {[%emt 0:00:57]} Qe6 {[%emt 0:00:57]} 30. h3 {[%emt 0:01:10]} Ke8 {[%emt 0:02:08]} 31. Qd1 {[%emt 0:01:04]} *

[Event "EYTCC Open U12 2018"]
[Site "Bad Blankeburg"]
[Date "2018.07.12"]
[Round "1"]
[White "Hlavina, Matous"]
[Black "Tancsa, Tamas"]
[Result "0-1"]
[ECO "C72"]
[WhiteElo "1776"]
[BlackElo "2023"]
[Annotator "NA"]
[PlyCount "106"]
[EventDate "2018.07.12"]
[EventType "swiss"]
[EventCountry "GER"]
[SourceTitle "playchess.com"]
[Source "ChessBase"]
[SourceQuality "1"]
[TimeControl "40/5400+30:1800+30"]

1. e4 {[%emt 0:00:00]} e5 {[%emt 0:00:00]} 2. Nf3 {[%emt 0:00:00]} Nc6 {[%emt 0:00:05]} 3. Bb5 {[%emt 0:00:24]} a6 {[%emt 0:00:26]} 4. Ba4 {[%emt 0:00:43]} d6 {[%emt 0:00:19]} 5. O-O {[%emt 0:01:13]} Bg4 {[%emt 0:00:45]} 6. c3 {[%emt 0:01:47]} Qf6 {[%emt 0:00:24]} 7. d3 {[%emt 0:03:53]} Nge7 {[%emt 0:00:21]} 8. Be3 {[%emt 0:07:18]} Ng6 {[%emt 0:06:22]} 9. Nbd2 {[%emt 0:10:34]} Nh4 {[%emt 0:10:28]} 10. Qb3 {[%emt 0:13:24]} b5 {[%emt 0:02:33]} 11. Qd5 {[%emt 0:02:32]} Kd7 {[%emt 0:00:05]} 12. Bxb5 axb5 {[%emt 0:03:35]} 13. Nxh4 {[%emt 0:30:23]} Be6 {[%emt 0:01:59]} 14. Qxb5 {[%emt 0:01:37]} Qxh4 {[%emt 0:05:10]} 15. d4 {[%emt 0:03:41]} exd4 {[%emt 0:03:29]} 16. cxd4 {[%emt 0:00:32]} Ra5 {[%emt 0:02:28]} 17. Qd3 {[%emt 0:01:15]} d5 {[%emt 0:02:32]} 18. f3 {[%emt 0:01:13]} Bd6 {[%emt 0:01:16]} 19. e5 {[%emt 0:00:28]} Be7 {[%emt 0:00:16]} 20. a3 {[%emt 0:01:15]} Rha8 {[%emt 0:01:43]} 21. Rac1 {[%emt 0:01:00]} Nd8 {[%emt 0:16:14]} 22. Rc3 {[%emt 0:04:03]} c6 {[%emt 0:04:10]} 23. Rfc1 {[%emt 0:01:27]} Rb8 {[%emt 0:05:27]} 24. b4 {[%emt 0:01:43]} Rab5 {[%emt 0:00:34]} 25. Nb3 {[%emt 0:00:57]} Qh5 {[%emt 0:01:59]} 26. Na5 {[%emt 0:01:03]} R5b6 {[%emt 0:00:22]} 27. Qe2 {[%emt 0:01:15]} Qg6 {[%emt 0:04:16]} 28. Kh1 {[%emt 0:01:53]} Bf5 {[%emt 0:00:58]} 29. Bf4 {[%emt 0:00:57]} Qe6 {[%emt 0:00:57]} 30. h3 {[%emt 0:01:10]} Ke8 {[%emt 0:02:08]} 31. Qd1 {[%emt 0:01:04]} Kf8 {[%emt 0:00:41]} 32. Bh2 {[%emt 0:00:49]} Rc8 {[%emt 0:02:50]} 33. Bf4 {[%emt 0:00:59]} Qd7 {[%emt 0:01:55]} 34. Qd2 {[%emt 0:00:56]} Ne6 {[%emt 0:00:21]} 35. Be3 {[%emt 0:00:28]} f6 {[%emt 0:01:05]} 36. Nb3 {[%emt 0:01:01]} Rd8 {[%emt 0:18:33]} 37. exf6 {[%emt 0:01:14]} Bxf6 {[%emt 0:00:01]} 38. Bf4 {[%emt 0:03:01]} Ra6 {[%emt 0:01:07]} 39. Ra1 {[%emt 0:01:37]} Rda8 {[%emt 0:00:11]} 40. Nc5 {[%emt 0:00:24]} Nxc5 {[%emt 0:00:40]} 41. bxc5 {[%emt 0:30:23]} Qa7 {[%emt 0:30:19]} 42. Bd6+ {[%emt 0:00:29]} Kg8 {[%emt 0:00:15]} 43. g4 {[%emt 0:00:26]} Bg6 {[%emt 0:00:12]} 44. g5 {[%emt 0:00:56]} Be7 {[%emt 0:00:07]} 45. Bxe7 {[%emt 0:00:00]} Qxe7 {[%emt 0:00:00]} 46. Re3 {[%emt 0:00:00]} Qd7 {[%emt 0:00:00]} 47. Kh2 {[%emt 0:00:00]} Ra4 {[%emt 0:00:00]} 48. Qb2 {[%emt 0:00:00]} Qf5 {[%emt 0:00:00]} 49. Rae1 {[%emt 0:00:00]} Qf4+ {[%emt 0:00:00]} 50. Kh1 {[%emt 0:00:00]} Bh5 {[%emt 0:00:00]} 51. Qc3 {[%emt 0:00:00]} Rxa3 {[%emt 0:00:00]} 52. Qd2 {[%emt 0:00:00]} Bxf3+ {[%emt 0:00:00]} 53. Kg1 {[%emt 0:00:00]} Qg3+ {[%emt 0:00:00]} 0-1

[Event "EYTCC Open U12 2018"]
[Site "Bad Blankeburg"]
[Date "2018.07.12"]
[Round "1"]
[White "Costa, Leonardo"]
[Black "Aizenberg, Benny"]
[Result "0-1"]
[ECO "B40"]
[WhiteElo "1746"]
[BlackElo "1941"]
[Annotator "NA"]
[PlyCount "72"]
[EventDate "2018.07.12"]
[EventType "swiss"]
[EventCountry "GER"]
[SourceTitle "playchess.com"]
[Source "ChessBase"]
[SourceQuality "1"]
[TimeControl "40/5400+30:1800+30"]

1. e4 {[%emt 0:00:00]} c5 {[%emt 0:00:35]} 2. Nf3 {[%emt 0:00:00]} e6 {[%emt 0:00:05]} 3. d4 {[%emt 0:00:15]} cxd4 {[%emt 0:00:07]} 4. Nxd4 {[%emt 0:00:10]} Nf6 {[%emt 0:00:07]} 5. Nc3 {[%emt 0:00:46]} Nc6 {[%emt 0:00:04]} 6. Be3 {[%emt 0:02:43]} Bb4 {[%emt 0:00:05]} 7. f3 {[%emt 0:01:00]} d5 {[%emt 0:00:58]} 8. Bd3 {[%emt 0:12:40]} e5 {[%emt 0:06:10]} 9. Nxc6 {[%emt 0:00:54]} bxc6 {[%emt 0:00:04]} 10. Bd2 {[%emt 0:04:17]} Qb6 {[%emt 0:07:43]} 11. exd5 {[%emt 0:12:59]} Nxd5 {[%emt 0:17:44]} 12. Nxd5 {[%emt 0:06:27]} cxd5 {[%emt 0:00:20]} 13. c3 {[%emt 0:06:14]} Bc5 {[%emt 0:02:05]} 14. Qb3 {[%emt 0:06:13]} Qd6 {[%emt 0:06:44]} 15. Bb5+ {[%emt 0:04:38]} Bd7 {[%emt 0:00:46]} 16. Qa4 {[%emt 0:01:16]} Rd8 {[%emt 0:02:06]} 17. Bxd7+ {[%emt 0:01:26]} Rxd7 {[%emt 0:00:14]} 18. Qc2 {[%emt 0:03:24]} O-O {[%emt 0:00:59]} 19. Qd3 {[%emt 0:08:37]} Rb8 {[%emt 0:01:44]} 20. b3 {[%emt 0:00:48]} Qe6 {[%emt 0:01:17]} 21. Qe2 {[%emt 0:04:47]} e4 {[%emt 0:01:54]} 22. fxe4 {[%emt 0:01:05]} dxe4 {[%emt 0:00:36]} 23. Be3 {[%emt 0:00:59]} Qb6 {[%emt 0:02:17]} 24. Bxc5 {[%emt 0:02:36]} Qxc5 {[%emt 0:00:05]} 25. Rc1 {[%emt 0:02:25]} Rd3 {[%emt 0:01:24]} 26. Kf1 {[%emt 0:02:44]} Qf5+ {[%emt 0:05:24]} 27. Qf2 {[%emt 0:00:20]} Qg5 {[%emt 0:00:21]} 28. Re1 {[%emt 0:01:39]} e3 {[%emt 0:08:40]} 29. Qf3 {[%emt 0:03:10]} Re8 {[%emt 0:02:29]} 30. Kg1 {[%emt 0:01:53]} Qc5 {[%emt 0:00:25]} 31. h3 {[%emt 0:01:16]} e2+ {[%emt 0:01:07]} 32. Qf2 {[%emt 0:00:04]} Rd1 {[%emt 0:00:27]} 33. Qxc5 {[%emt 0:02:28]} Rxe1+ {[%emt 0:00:04]} 34. Kf2 {[%emt 0:00:51]} Rxh1 {[%emt 0:00:05]} 35. Kf3 {[%emt 0:00:20]} e1=Q {[%emt 0:00:06]} 36. Qc6 {[%emt 0:00:13]} Rf1+ {[%emt 0:00:11]} 0-1